[Event "Live Chess"]
[Site "Chess.com"]
[Date "2023.05.21"]
[Round "-"]
[White "Cimon"]
[Black "BritishIsles"]
[Result "0-1"]
[WhiteElo "1849"]
[BlackElo "2415"]
[TimeControl "300"]
[EndTime "1:22:20 PDT"]
[Termination "BritishIsles won by resignation"]

1. d4 {[%clk 0:04:57.5]} 1... d5 {[%clk 0:04:58.1]} 2. Nf3 {[%clk 0:04:55.1]}
2... Nf6 {[%clk 0:04:56.4]} 3. c4 {[%clk 0:04:53.9]} 3... c6 {[%clk 0:04:53.2]}
4. Nc3 {[%clk 0:04:51.6]} 4... dxc4 {[%clk 0:04:51.1]} 5. a4 {[%clk 0:04:49.9]}
5... a5 {[%clk 0:04:44.3]} 6. Bg5 {[%clk 0:04:46.4]} 6... Na6 {[%clk 0:04:40.8]}
7. e3 {[%clk 0:04:40.5]} 7... Nb4 {[%clk 0:04:38.2]} 8. Bxc4 {[%clk 0:04:36]}
8... Bf5 {[%clk 0:04:33.4]} 9. Rc1 {[%clk 0:04:15.8]} 9... e6 {[%clk 0:04:27.5]}
10. O-O {[%clk 0:04:12.2]} 10... Be7 {[%clk 0:04:24.5]} 11. Ne5 {[%clk
0:03:58.1]} 11... O-O {[%clk 0:04:18.6]} 12. f3 {[%clk 0:03:48.3]} 12... Nfd5
{[%clk 0:04:08.4]} 13. Bxe7 {[%clk 0:03:44.5]} 13... Qxe7 {[%clk 0:04:08.3]} 14.
Qe2 {[%clk 0:03:39.2]} 14... Bg6 {[%clk 0:04:04.2]} 15. Kh1 {[%clk 0:03:21.7]}
15... Rfd8 {[%clk 0:03:49.3]} 16. Rfd1 {[%clk 0:03:18.9]} 16... Rac8 {[%clk
0:03:38.3]} 17. e4 {[%clk 0:03:00.3]} 17... Nb6 {[%clk 0:03:31.4]} 18. Bb3
{[%clk 0:02:47.7]} 18... Nd7 {[%clk 0:03:22.1]} 19. f4 {[%clk 0:02:37.6]} 19...
Nxe5 {[%clk 0:03:19.2]} 20. dxe5 {[%clk 0:02:31]} 20... Qh4 {[%clk 0:03:18.1]}
21. g3 {[%clk 0:02:27.4]} 21... Qh3 {[%clk 0:03:16.2]} 22. Qg2 {[%clk
0:02:17.2]} 22... Qxg2+ {[%clk 0:03:12]} 23. Kxg2 {[%clk 0:02:16.1]} 23... Bh5
{[%clk 0:03:11.9]} 24. Rxd8+ {[%clk 0:02:07.8]} 24... Rxd8 {[%clk 0:03:11.8]}
25. Bd1 {[%clk 0:02:05.2]} 25... Rd2+ {[%clk 0:03:09.5]} 26. Kh3 {[%clk
0:01:57.8]} 26... Bxd1 {[%clk 0:03:01.7]} 27. Rxd1 {[%clk 0:01:55.2]} 27... Rxd1
{[%clk 0:02:58.6]} 28. Nxd1 {[%clk 0:01:53.8]} 28... Nd3 {[%clk 0:02:51]} 29.
Kg2 {[%clk 0:01:46.3]} 29... b5 {[%clk 0:02:46.3]} 30. axb5 {[%clk 0:01:43]}
30... cxb5 {[%clk 0:02:46.2]} 31. Kf3 {[%clk 0:01:40.7]} 31... b4 {[%clk
0:02:45.4]} 32. Ke3 {[%clk 0:01:38.7]} 32... Nc1 {[%clk 0:02:24.3]} 33. Kd4
{[%clk 0:01:25.8]} 33... a4 {[%clk 0:02:22.6]} 34. Kc4 {[%clk 0:01:14.3]} 34...
a3 {[%clk 0:02:21.3]} 35. bxa3 {[%clk 0:01:12.3]} 35... bxa3 {[%clk 0:02:20.6]}
36. Kc3 {[%clk 0:01:09.6]} 36... h6 {[%clk 0:01:54.1]} 37. Ne3 {[%clk 0:00:54]}
37... g5 {[%clk 0:01:46.7]} 38. f5 {[%clk 0:00:50.6]} 38... a2 {[%clk 0:01:39]}
39. Kb2 {[%clk 0:00:49.1]} 39... Nd3+ {[%clk 0:01:37]} 40. Kxa2 {[%clk 0:00:47]}
40... Nxe5 {[%clk 0:01:36.9]} 41. Kb3 {[%clk 0:00:41]} 41... Nf3 {[%clk
0:01:35.8]} 42. h4 {[%clk 0:00:34.5]} 42... gxh4 {[%clk 0:01:34.4]} 43. gxh4
{[%clk 0:00:33]} 43... Nxh4 {[%clk 0:01:34.3]} 44. fxe6 {[%clk 0:00:30.5]} 44...
fxe6 {[%clk 0:01:34.2]} 45. Kc4 {[%clk 0:00:28.5]} 45... Kf7 {[%clk 0:01:31.5]}
46. Kd4 {[%clk 0:00:25]} 46... Nf3+ {[%clk 0:01:30.6]} 47. Kd3 {[%clk
0:00:22.8]} 47... h5 {[%clk 0:01:28.6]} 48. Ke2 {[%clk 0:00:21.3]} 48... Ng5
{[%clk 0:01:27.6]} 49. Kf2 {[%clk 0:00:20.1]} 49... Nxe4+ {[%clk 0:01:24.9]} 50.
Kf3 {[%clk 0:00:18.4]} 50... Ng5+ {[%clk 0:01:22.3]} 51. Kf4 {[%clk 0:00:17.2]}
51... Kf6 {[%clk 0:01:21.4]} 52. Ng2 {[%clk 0:00:15.4]} 52... e5+ {[%clk
0:01:19.6]} 53. Kg3 {[%clk 0:00:13.3]} 53... Ne6 {[%clk 0:01:16.3]} 54. Ne3
{[%clk 0:00:11.4]} 54... Kg5 {[%clk 0:01:15.1]} 55. Nd5 {[%clk 0:00:09.6]} 55...
h4+ {[%clk 0:01:13.5]} 56. Kh3 {[%clk 0:00:08.4]} 56... Nf4+ {[%clk 0:01:12.7]}
0-1

[Event "Live Chess"]
[Site "Chess.com"]
[Date "2023.05.21"]
[Round "-"]
[White "Ferrarifan27"]
[Black "ExIsambard"]
[Result "1-0"]
[WhiteElo "2080"]
[BlackElo "1920"]
[TimeControl "300"]
[EndTime "1:22:23 PDT"]
[Termination "Ferrarifan27 won by resignation"]

1. e4 {[%clk 0:04:58.4]} 1... Nc6 {[%clk 0:04:58.9]} 2. d4 {[%clk 0:04:56.5]}
2... d5 {[%clk 0:04:58.4]} 3. e5 {[%clk 0:04:55.6]} 3... Bf5 {[%clk 0:04:57.6]}
4. Nf3 {[%clk 0:04:53.7]} 4... f6 {[%clk 0:04:56.9]} 5. Bb5 {[%clk 0:04:50.2]}
5... Qd7 {[%clk 0:04:52.3]} 6. O-O {[%clk 0:04:46.3]} 6... a6 {[%clk 0:04:47.4]}
7. Ba4 {[%clk 0:04:32.6]} 7... b5 {[%clk 0:04:46.5]} 8. Bb3 {[%clk 0:04:30.8]}
8... e6 {[%clk 0:04:39.9]} 9. Re1 {[%clk 0:04:24.7]} 9... Be7 {[%clk 0:04:38.3]}
10. c3 {[%clk 0:04:22.4]} 10... Be4 {[%clk 0:04:27.1]} 11. Nbd2 {[%clk
0:04:18.3]} 11... f5 {[%clk 0:04:24]} 12. Nxe4 {[%clk 0:04:06.1]} 12... dxe4
{[%clk 0:04:21.9]} 13. Ng5 {[%clk 0:03:57.8]} 13... Bxg5 {[%clk 0:04:21]} 14.
Bxg5 {[%clk 0:03:55.6]} 14... Nge7 {[%clk 0:04:20]} 15. Qh5+ {[%clk 0:03:48.2]}
15... Ng6 {[%clk 0:04:18.2]} 16. Rad1 {[%clk 0:03:39.3]} 16... Ne7 {[%clk
0:04:13.5]} 17. f3 {[%clk 0:03:09.7]} 17... exf3 {[%clk 0:03:58.7]} 18. Qxf3
{[%clk 0:03:08.1]} 18... O-O {[%clk 0:03:57.3]} 19. d5 {[%clk 0:02:48.7]} 19...
exd5 {[%clk 0:03:45.1]} 20. Rxd5 {[%clk 0:02:46.5]} 20... Nxd5 {[%clk
0:03:39.2]} 21. Bxd5+ {[%clk 0:02:45.1]} 21... Kh8 {[%clk 0:03:36.5]} 22. Bxa8
{[%clk 0:02:43.4]} 22... Rxa8 {[%clk 0:03:36.4]} 23. Qxa8+ {[%clk 0:02:41.2]}
1-0

[Event "Live Chess"]
[Site "Chess.com"]
[Date "2023.05.21"]
[Round "-"]
[White "Missedidea"]
[Black "Rusty_Bridges"]
[Result "1-0"]
[WhiteElo "1842"]
[BlackElo "1519"]
[TimeControl "300"]
[EndTime "1:22:32 PDT"]
[Termination "Missedidea won by checkmate"]

1. d4 {[%clk 0:04:58.2]} 1... d5 {[%clk 0:04:57.8]} 2. c4 {[%clk 0:04:56.7]}
2... dxc4 {[%clk 0:04:55.6]} 3. e3 {[%clk 0:04:55.2]} 3... Nc6 {[%clk
0:04:53.5]} 4. Bxc4 {[%clk 0:04:53.5]} 4... e6 {[%clk 0:04:52]} 5. Nf3 {[%clk
0:04:51.7]} 5... Bb4+ {[%clk 0:04:51]} 6. Bd2 {[%clk 0:04:49.8]} 6... Bxd2+
{[%clk 0:04:49.8]} 7. Qxd2 {[%clk 0:04:46.5]} 7... Nf6 {[%clk 0:04:48.8]} 8. O-O
{[%clk 0:04:43.9]} 8... Ne4 {[%clk 0:04:47.5]} 9. Qe2 {[%clk 0:04:40]} 9... a6
{[%clk 0:04:45.5]} 10. Nc3 {[%clk 0:04:34.5]} 10... Nxc3 {[%clk 0:04:42.5]} 11.
bxc3 {[%clk 0:04:32.7]} 11... b5 {[%clk 0:04:39.6]} 12. Bb3 {[%clk 0:04:29.2]}
12... Ne7 {[%clk 0:04:37.8]} 13. e4 {[%clk 0:04:27.3]} 13... Bb7 {[%clk
0:04:35.6]} 14. Rfe1 {[%clk 0:04:25.1]} 14... Ng6 {[%clk 0:04:32.3]} 15. g3
{[%clk 0:04:20.3]} 15... O-O {[%clk 0:04:28.4]} 16. h4 {[%clk 0:04:18.8]} 16...
Ne7 {[%clk 0:04:24.3]} 17. Qc2 {[%clk 0:04:09]} 17... Kh8 {[%clk 0:04:14.5]} 18.
Ng5 {[%clk 0:04:01.1]} 18... Bc8 {[%clk 0:04:06.3]} 19. e5 {[%clk 0:03:57.9]}
19... h6 {[%clk 0:04:01.9]} 20. Qh7# {[%clk 0:03:54.9]} 1-0

[Event "Live Chess"]
[Site "Chess.com"]
[Date "2023.05.21"]
[Round "-"]
[White "ms_lilley"]
[Black "Doge_Dandolo"]
[Result "0-1"]
[WhiteElo "587"]
[BlackElo "1884"]
[TimeControl "300"]
[EndTime "1:23:08 PDT"]
[Termination "Doge_Dandolo won by checkmate"]

1. d4 {[%clk 0:04:55.5]} 1... d5 {[%clk 0:04:58.9]} 2. e3 {[%clk 0:04:54]} 2...
Bf5 {[%clk 0:04:57.3]} 3. Nf3 {[%clk 0:04:51.3]} 3... c6 {[%clk 0:04:56.3]} 4.
h3 {[%clk 0:04:49.7]} 4... Nd7 {[%clk 0:04:55.1]} 5. Bd3 {[%clk 0:04:47.4]} 5...
e6 {[%clk 0:04:53.8]} 6. Bxf5 {[%clk 0:04:45.3]} 6... exf5 {[%clk 0:04:52]} 7.
a3 {[%clk 0:04:38.2]} 7... Ngf6 {[%clk 0:04:49.4]} 8. b4 {[%clk 0:04:36.3]} 8...
Bd6 {[%clk 0:04:45.6]} 9. Qd3 {[%clk 0:04:22.2]} 9... Ne4 {[%clk 0:04:44]} 10.
O-O {[%clk 0:04:18.5]} 10... O-O {[%clk 0:04:42.4]} 11. c4 {[%clk 0:04:16]}
11... Bc7 {[%clk 0:04:36.7]} 12. c5 {[%clk 0:04:13.6]} 12... a6 {[%clk
0:04:33.2]} 13. Nbd2 {[%clk 0:04:07.1]} 13... Ndf6 {[%clk 0:04:31.5]} 14. Bb2
{[%clk 0:04:03.7]} 14... Qe7 {[%clk 0:04:29.4]} 15. a4 {[%clk 0:03:41.1]} 15...
Rae8 {[%clk 0:04:26.5]} 16. Nxe4 {[%clk 0:03:37.2]} 16... fxe4 {[%clk
0:04:25.3]} 17. Qe2 {[%clk 0:03:31.8]} 17... exf3 {[%clk 0:04:24.4]} 18. Qxf3
{[%clk 0:03:29.3]} 18... Qe4 {[%clk 0:04:21.6]} 19. Qe2 {[%clk 0:03:26]} 19...
Ra8 {[%clk 0:04:17.6]} 20. a5 {[%clk 0:03:19.2]} 20... Rae8 {[%clk 0:04:15]} 21.
f3 {[%clk 0:03:03.6]} 21... Qe7 {[%clk 0:04:12.4]} 22. Bc1 {[%clk 0:02:50.6]}
22... Bb8 {[%clk 0:04:06.9]} 23. Bd2 {[%clk 0:02:48.2]} 23... Qc7 {[%clk
0:04:02.3]} 24. f4 {[%clk 0:02:44.4]} 24... Ne4 {[%clk 0:03:58.9]} 25. g4 {[%clk
0:02:26.8]} 25... f5 {[%clk 0:03:53.9]} 26. g5 {[%clk 0:02:21.1]} 26... Re6
{[%clk 0:03:51.6]} 27. Qh5 {[%clk 0:02:12.5]} 27... Nxd2 {[%clk 0:03:48]} 28.
Kf2 {[%clk 0:01:54.1]} 28... Nc4 {[%clk 0:03:44.4]} 29. g6 {[%clk 0:01:49.8]}
29... Rxg6 {[%clk 0:03:41.8]} 30. Rg1 {[%clk 0:01:45.5]} 30... Rff6 {[%clk
0:03:39.5]} 31. Rg2 {[%clk 0:01:35.5]} 31... Qe7 {[%clk 0:03:37.9]} 32. Rag1
{[%clk 0:01:32.1]} 32... Qxe3+ {[%clk 0:03:32.1]} 33. Kf1 {[%clk 0:01:24.9]}
33... Nd2+ {[%clk 0:03:24.5]} 34. Rxd2 {[%clk 0:01:19.7]} 34... Rxg1# {[%clk
0:03:23]} 0-1

[Event "Live Chess"]
[Site "Chess.com"]
[Date "2023.05.21"]
[Round "-"]
[White "FailsGambits"]
[Black "EdenHazard8"]
[Result "0-1"]
[WhiteElo "1336"]
[BlackElo "1943"]
[TimeControl "300"]
[EndTime "1:23:10 PDT"]
[Termination "EdenHazard8 won by resignation"]

1. e4 {[%clk 0:04:58.8]} 1... c6 {[%clk 0:04:59]} 2. Nf3 {[%clk 0:04:57.8]} 2...
d5 {[%clk 0:04:58.9]} 3. e5 {[%clk 0:04:57.7]} 3... c5 {[%clk 0:04:58.2]} 4. d4
{[%clk 0:04:55.6]} 4... Nc6 {[%clk 0:04:57.1]} 5. c4 {[%clk 0:04:51.8]} 5... e6
{[%clk 0:04:54.4]} 6. dxc5 {[%clk 0:04:49.3]} 6... Bxc5 {[%clk 0:04:52.9]} 7.
cxd5 {[%clk 0:04:47.7]} 7... exd5 {[%clk 0:04:52.8]} 8. Bb5 {[%clk 0:04:39.3]}
8... Qb6 {[%clk 0:04:47]} 9. Bxc6+ {[%clk 0:04:28.4]} 9... bxc6 {[%clk
0:04:46.9]} 10. O-O {[%clk 0:04:27.2]} 10... Ba6 {[%clk 0:04:45.8]} 11. Re1
{[%clk 0:04:23.7]} 11... Bxf2+ {[%clk 0:04:44]} 0-1

[Event "Live Chess"]
[Site "Chess.com"]
[Date "2023.05.21"]
[Round "-"]
[White "NAZRIZ1977"]
[Black "RichardABates"]
[Result "0-1"]
[WhiteElo "1989"]
[BlackElo "2130"]
[TimeControl "300"]
[EndTime "1:23:11 PDT"]
[Termination "RichardABates won by resignation"]

1. d4 {[%clk 0:04:55.6]} 1... Nf6 {[%clk 0:04:58.5]} 2. Nc3 {[%clk 0:04:54.1]}
2... d5 {[%clk 0:04:56.5]} 3. Bf4 {[%clk 0:04:53.1]} 3... c5 {[%clk 0:04:53.9]}
4. e3 {[%clk 0:04:52.1]} 4... cxd4 {[%clk 0:04:41.9]} 5. exd4 {[%clk 0:04:48.8]}
5... a6 {[%clk 0:04:40.2]} 6. Nf3 {[%clk 0:04:47.2]} 6... Nc6 {[%clk 0:04:38.7]}
7. Ne5 {[%clk 0:04:46.3]} 7... Bd7 {[%clk 0:04:36.2]} 8. Nxd7 {[%clk 0:04:37]}
8... Qxd7 {[%clk 0:04:34.7]} 9. Be2 {[%clk 0:04:35.4]} 9... e6 {[%clk
0:04:33.3]} 10. a3 {[%clk 0:04:34.1]} 10... Bd6 {[%clk 0:04:30.8]} 11. Bg3
{[%clk 0:04:32.6]} 11... O-O {[%clk 0:04:28.9]} 12. O-O {[%clk 0:04:31.6]} 12...
b5 {[%clk 0:04:25]} 13. a4 {[%clk 0:04:26.8]} 13... b4 {[%clk 0:04:22.6]} 14.
Nb1 {[%clk 0:04:26]} 14... Ne4 {[%clk 0:04:10.2]} 15. Bxd6 {[%clk 0:04:21.4]}
15... Qxd6 {[%clk 0:04:08.9]} 16. Bf3 {[%clk 0:04:20.8]} 16... Rac8 {[%clk
0:04:03.1]} 17. Re1 {[%clk 0:04:14.9]} 17... f5 {[%clk 0:04:00.3]} 18. c4 {[%clk
0:03:56]} 18... bxc3 {[%clk 0:03:56.2]} 19. Nxc3 {[%clk 0:03:47.9]} 19... Qb4
{[%clk 0:03:43]} 20. Bxe4 {[%clk 0:03:21.7]} 20... fxe4 {[%clk 0:03:36.2]} 21.
Rb1 {[%clk 0:03:01.8]} 21... Qxd4 {[%clk 0:03:30.8]} 0-1

[Event "Live Chess"]
[Site "Chess.com"]
[Date "2023.05.21"]
[Round "-"]
[White "elizaveta_frundina"]
[Black "Duke_of_Bebington"]
[Result "0-1"]
[WhiteElo "1589"]
[BlackElo "1595"]
[TimeControl "300"]
[EndTime "1:23:47 PDT"]
[Termination "Duke_of_Bebington won on time"]

1. e4 {[%clk 0:04:53.7]} 1... e5 {[%clk 0:04:58.5]} 2. Nf3 {[%clk 0:04:50.5]}
2... Nf6 {[%clk 0:04:56.6]} 3. d4 {[%clk 0:04:48.2]} 3... Nxe4 {[%clk
0:04:53.7]} 4. Bd3 {[%clk 0:04:36.1]} 4... Nc6 {[%clk 0:04:50.7]} 5. Bxe4 {[%clk
0:04:28.8]} 5... d5 {[%clk 0:04:49]} 6. Nxe5 {[%clk 0:04:03]} 6... dxe4 {[%clk
0:04:40.9]} 7. Nxc6 {[%clk 0:03:48.5]} 7... bxc6 {[%clk 0:04:40.8]} 8. Nc3
{[%clk 0:03:43.8]} 8... f5 {[%clk 0:04:38.9]} 9. Qh5+ {[%clk 0:03:36.4]} 9... g6
{[%clk 0:04:37.2]} 10. Qd1 {[%clk 0:03:27.1]} 10... Bg7 {[%clk 0:04:31.8]} 11.
Be3 {[%clk 0:03:18.2]} 11... Ba6 {[%clk 0:04:28.1]} 12. Ne2 {[%clk 0:03:12.1]}
12... Bxe2 {[%clk 0:04:22.8]} 13. Qxe2 {[%clk 0:03:06.5]} 13... Rb8 {[%clk
0:04:04.8]} 14. c3 {[%clk 0:02:52.6]} 14... O-O {[%clk 0:03:55.3]} 15. O-O
{[%clk 0:02:42.5]} 15... Kh8 {[%clk 0:03:54]} 16. Qc4 {[%clk 0:02:40]} 16... Qd5
{[%clk 0:03:51.7]} 17. Qa6 {[%clk 0:02:27.6]} 17... f4 {[%clk 0:03:38.5]} 18.
Bd2 {[%clk 0:02:10.1]} 18... f3 {[%clk 0:03:36.8]} 19. c4 {[%clk 0:02:01.2]}
19... Qxd4 {[%clk 0:03:23.7]} 20. Be3 {[%clk 0:01:54.3]} 20... Qxb2 {[%clk
0:03:22]} 21. Qxa7 {[%clk 0:01:33.5]} 21... fxg2 {[%clk 0:03:03]} 22. Rfd1
{[%clk 0:01:03.6]} 22... Qe5 {[%clk 0:02:36.2]} 23. Bd4 {[%clk 0:00:50.1]} 23...
Qe7 {[%clk 0:02:34.1]} 24. Bxg7+ {[%clk 0:00:42.2]} 24... Qxg7 {[%clk 0:02:34]}
25. Qd4 {[%clk 0:00:35.9]} 25... Qxd4 {[%clk 0:02:18.7]} 26. Rxd4 {[%clk
0:00:34.6]} 26... Rbd8 {[%clk 0:02:01.1]} 27. Rad1 {[%clk 0:00:26.3]} 27... Rxd4
{[%clk 0:01:58.7]} 28. Rxd4 {[%clk 0:00:24.8]} 28... Ra8 {[%clk 0:01:54.4]} 29.
Rd2 {[%clk 0:00:21.7]} 29... Kg8 {[%clk 0:01:50.7]} 30. Kxg2 {[%clk 0:00:20.6]}
30... Kf8 {[%clk 0:01:49.3]} 31. Kg3 {[%clk 0:00:19.2]} 31... Ra3+ {[%clk
0:01:43.3]} 32. Kf4 {[%clk 0:00:17.5]} 32... Rh3 {[%clk 0:01:41.2]} 33. Kxe4
{[%clk 0:00:15.1]} 33... Rxh2 {[%clk 0:01:40]} 34. Ke5 {[%clk 0:00:13.4]} 34...
Ke7 {[%clk 0:01:35.7]} 35. c5 {[%clk 0:00:11]} 35... Rh5+ {[%clk 0:01:32.8]} 36.
Kd4 {[%clk 0:00:09.5]} 36... Rd5+ {[%clk 0:01:31.9]} 37. Kc3 {[%clk 0:00:08.3]}
37... Rxc5+ {[%clk 0:01:30.9]} 38. Kb4 {[%clk 0:00:06.9]} 38... Rb5+ {[%clk
0:01:29.7]} 39. Ka4 {[%clk 0:00:05.5]} 39... Rd5 {[%clk 0:01:27.3]} 40. Rxd5
{[%clk 0:00:03.7]} 40... cxd5 {[%clk 0:01:26.1]} 41. Kb5 {[%clk 0:00:03.5]}
41... Kd6 {[%clk 0:01:24.5]} 42. a4 {[%clk 0:00:02.9]} 42... c6+ {[%clk
0:01:20.4]} 43. Kb6 {[%clk 0:00:02]} 43... d4 {[%clk 0:01:16.4]} 44. a5 {[%clk
0:00:01.5]} 44... d3 {[%clk 0:01:15.6]} 0-1

[Event "Live Chess"]
[Site "Chess.com"]
[Date "2023.05.21"]
[Round "-"]
[White "Long1968"]
[Black "Tilbs_12"]
[Result "0-1"]
[WhiteElo "991"]
[BlackElo "1567"]
[TimeControl "300"]
[EndTime "1:23:57 PDT"]
[Termination "Tilbs_12 won on time"]

1. e4 {[%clk 0:04:56.7]} 1... c6 {[%clk 0:04:59.2]} 2. d4 {[%clk 0:04:53.8]}
2... d5 {[%clk 0:04:58.3]} 3. e5 {[%clk 0:04:50.2]} 3... c5 {[%clk 0:04:57.4]}
4. c3 {[%clk 0:04:46.3]} 4... Nc6 {[%clk 0:04:54.9]} 5. f4 {[%clk 0:04:41.3]}
5... Bf5 {[%clk 0:04:50.5]} 6. dxc5 {[%clk 0:04:20.1]} 6... a5 {[%clk
0:04:45.4]} 7. Be3 {[%clk 0:04:15.2]} 7... e6 {[%clk 0:04:42]} 8. Bd3 {[%clk
0:04:06.7]} 8... Bg6 {[%clk 0:04:38.9]} 9. Nf3 {[%clk 0:03:51.1]} 9... Nge7
{[%clk 0:04:33.4]} 10. Bxg6 {[%clk 0:03:43.8]} 10... hxg6 {[%clk 0:04:31.7]} 11.
O-O {[%clk 0:03:34.5]} 11... Nf5 {[%clk 0:04:30.5]} 12. Qd2 {[%clk 0:03:23.6]}
12... Qc7 {[%clk 0:04:08.1]} 13. Nd4 {[%clk 0:02:36.6]} 13... Nd8 {[%clk
0:04:00.9]} 14. Nb5 {[%clk 0:02:19.3]} 14... Qc6 {[%clk 0:03:50.5]} 15. Nd6+
{[%clk 0:02:07.7]} 15... Bxd6 {[%clk 0:03:40.7]} 16. cxd6 {[%clk 0:01:58.7]}
16... b6 {[%clk 0:03:21.9]} 17. Qf2 {[%clk 0:01:35.8]} 17... Nxe3 {[%clk
0:03:14.7]} 18. Qxe3 {[%clk 0:01:31.3]} 18... Qc5 {[%clk 0:03:08.3]} 19. Re1
{[%clk 0:01:10.9]} 19... Qxe3+ {[%clk 0:03:06.8]} 20. Rxe3 {[%clk 0:01:06.9]}
20... Kd7 {[%clk 0:03:06.3]} 21. Nd2 {[%clk 0:00:58]} 21... f5 {[%clk
0:03:05.1]} 22. exf6 {[%clk 0:00:50.4]} 22... gxf6 {[%clk 0:03:03.4]} 23. c4
{[%clk 0:00:43.9]} 23... Kxd6 {[%clk 0:02:58.6]} 24. Rd1 {[%clk 0:00:33.5]}
24... d4 {[%clk 0:02:48.2]} 25. Nb3 {[%clk 0:00:18.1]} 25... e5 {[%clk
0:02:45.5]} 26. Nxd4 {[%clk 0:00:10.4]} 26... exd4 {[%clk 0:02:40.5]} 27. Rxd4+
{[%clk 0:00:07.7]} 27... Kc5 {[%clk 0:02:30.7]} 28. Rde4 {[%clk 0:00:01.6]}
28... Nc6 {[%clk 0:02:25.7]} 0-1

[Event "Live Chess"]
[Site "Chess.com"]
[Date "2023.05.21"]
[Round "-"]
[White "OleksiyJr1"]
[Black "Mugzwang"]
[Result "0-1"]
[WhiteElo "986"]
[BlackElo "1554"]
[TimeControl "300"]
[EndTime "1:24:06 PDT"]
[Termination "Mugzwang won by checkmate"]

1. e4 {[%clk 0:04:58.5]} 1... c5 {[%clk 0:04:58]} 2. Nf3 {[%clk 0:04:57.6]} 2...
Nc6 {[%clk 0:04:55.1]} 3. Nc3 {[%clk 0:04:57.2]} 3... e5 {[%clk 0:04:52.7]} 4.
Bb5 {[%clk 0:04:56.6]} 4... d6 {[%clk 0:04:37]} 5. Bxc6+ {[%clk 0:04:55.3]} 5...
bxc6 {[%clk 0:04:35.9]} 6. d3 {[%clk 0:04:54.5]} 6... Nf6 {[%clk 0:04:30.4]} 7.
O-O {[%clk 0:04:49]} 7... Be7 {[%clk 0:04:29]} 8. h3 {[%clk 0:04:47.8]} 8... O-O
{[%clk 0:04:24.7]} 9. Be3 {[%clk 0:04:47.4]} 9... d5 {[%clk 0:04:10.6]} 10. exd5
{[%clk 0:04:42.9]} 10... cxd5 {[%clk 0:04:07.3]} 11. Ne2 {[%clk 0:04:37.6]}
11... e4 {[%clk 0:03:48.5]} 12. dxe4 {[%clk 0:04:31.6]} 12... Nxe4 {[%clk
0:03:45.8]} 13. Nf4 {[%clk 0:04:06.1]} 13... d4 {[%clk 0:03:37.9]} 14. Bd2
{[%clk 0:03:58]} 14... Bb7 {[%clk 0:03:24.1]} 15. Re1 {[%clk 0:03:48.9]} 15...
Nxd2 {[%clk 0:03:09.5]} 16. Nxd2 {[%clk 0:03:45.8]} 16... Bd6 {[%clk 0:03:02]}
17. Nd3 {[%clk 0:03:42.8]} 17... Qc7 {[%clk 0:02:59.8]} 18. Ne4 {[%clk
0:03:39.1]} 18... Qc6 {[%clk 0:02:52.7]} 19. Nxd6 {[%clk 0:03:38.1]} 19... Qxg2#
{[%clk 0:02:50.9]} 0-1

[Event "Live Chess"]
[Site "Chess.com"]
[Date "2023.05.21"]
[Round "-"]
[White "Biranidun"]
[Black "YrrriKharkiv"]
[Result "1-0"]
[WhiteElo "2543"]
[BlackElo "2077"]
[TimeControl "300"]
[EndTime "1:24:10 PDT"]
[Termination "Biranidun won by resignation"]

1. e4 {[%clk 0:04:59.1]} 1... Nf6 {[%clk 0:04:56.7]} 2. e5 {[%clk 0:04:58.4]}
2... Nd5 {[%clk 0:04:55.9]} 3. d4 {[%clk 0:04:58.2]} 3... d6 {[%clk 0:04:54.8]}
4. Nf3 {[%clk 0:04:57.8]} 4... g6 {[%clk 0:04:53.7]} 5. Bc4 {[%clk 0:04:56.2]}
5... Nb6 {[%clk 0:04:52.1]} 6. Bb3 {[%clk 0:04:55.6]} 6... Bg7 {[%clk
0:04:50.8]} 7. Ng5 {[%clk 0:04:55.3]} 7... O-O {[%clk 0:04:49.1]} 8. e6 {[%clk
0:04:50.7]} 8... f6 {[%clk 0:04:40.5]} 9. Nf7 {[%clk 0:04:49.1]} 9... Qe8 {[%clk
0:04:40]} 10. d5 {[%clk 0:04:44.4]} 10... c6 {[%clk 0:04:30.3]} 11. c4 {[%clk
0:04:43.1]} 11... cxd5 {[%clk 0:04:28.6]} 12. cxd5 {[%clk 0:04:43]} 12... Rxf7
{[%clk 0:04:19.9]} 13. exf7+ {[%clk 0:04:41.8]} 13... Qxf7 {[%clk 0:04:19.5]}
14. O-O {[%clk 0:04:40.4]} 14... N8d7 {[%clk 0:04:16.8]} 15. Nc3 {[%clk
0:04:36.8]} 15... Nc5 {[%clk 0:04:15.6]} 16. Bc2 {[%clk 0:04:36.2]} 16... f5
{[%clk 0:04:05.1]} 17. Be3 {[%clk 0:04:35.4]} 17... f4 {[%clk 0:03:37.1]} 18.
Bd4 {[%clk 0:04:28.6]} 18... f3 {[%clk 0:03:34.8]} 19. Bxg7 {[%clk 0:04:25.7]}
19... fxg2 {[%clk 0:03:32.3]} 20. Re1 {[%clk 0:04:25.1]} 20... Qxg7 {[%clk
0:03:23.9]} 21. Qe2 {[%clk 0:04:22.9]} 21... Kf8 {[%clk 0:03:14.4]} 22. Qf3+
{[%clk 0:04:22]} 22... Kg8 {[%clk 0:02:55.1]} 23. Qe3 {[%clk 0:04:20.3]} 23...
Kf8 {[%clk 0:02:53.5]} 24. Re2 {[%clk 0:04:16.7]} 24... Bf5 {[%clk 0:02:46]} 25.
Qf4 {[%clk 0:04:08]} 25... Qf6 {[%clk 0:02:33.8]} 26. Rae1 {[%clk 0:04:05.2]}
26... Re8 {[%clk 0:02:28.2]} 27. Kxg2 {[%clk 0:03:46]} 27... a6 {[%clk
0:01:47.9]} 28. Re3 {[%clk 0:03:40.7]} 28... Nbd7 {[%clk 0:01:43.8]} 29. Qh6+
{[%clk 0:03:36.8]} 29... Kg8 {[%clk 0:01:34.1]} 30. Bxf5 {[%clk 0:03:35.6]}
30... gxf5 {[%clk 0:01:29.4]} 31. Qxf6 {[%clk 0:03:29.5]} 31... Nxf6 {[%clk
0:01:27.8]} 32. Rxe7 {[%clk 0:03:29]} 32... Rf8 {[%clk 0:01:22.7]} 33. Kf3
{[%clk 0:03:18.6]} 33... b5 {[%clk 0:01:14.6]} 34. Rg1+ {[%clk 0:03:11.1]} 34...
Kh8 {[%clk 0:01:12.4]} 35. a3 {[%clk 0:03:09]} 35... Nce4 {[%clk 0:01:04.4]} 36.
Nxe4 {[%clk 0:03:06.4]} 36... fxe4+ {[%clk 0:01:03.1]} 37. Ke2 {[%clk
0:03:04.6]} 37... Nxd5 {[%clk 0:00:55.9]} 38. Rxe4 {[%clk 0:03:03.3]} 38... Nf4+
{[%clk 0:00:54.9]} 39. Ke3 {[%clk 0:02:40.4]} 39... Nd5+ {[%clk 0:00:49.7]} 40.
Kd4 {[%clk 0:02:39.5]} 40... Nf4 {[%clk 0:00:45.2]} 41. Rg4 {[%clk 0:02:31.9]}
41... Ng6 {[%clk 0:00:41.7]} 42. f4 {[%clk 0:02:30.8]} 42... d5 {[%clk 0:00:40]}
43. Kxd5 {[%clk 0:02:28]} 43... Rd8+ {[%clk 0:00:35.2]} 44. Kc5 {[%clk
0:02:27.4]} 44... Rf8 {[%clk 0:00:24.9]} 45. h4 {[%clk 0:02:22.7]} 45... Rf5+
{[%clk 0:00:21.5]} 46. Kb6 {[%clk 0:02:21.8]} 46... Rf6+ {[%clk 0:00:19.4]} 47.
Ka5 {[%clk 0:02:21]} 47... Rf5 {[%clk 0:00:16]} 48. Rg5 {[%clk 0:02:19.7]} 1-0